[Event "Polofinale MCR junioru 2023"]
[Site "Czech Republic"]
[Date "2023.11.16"]
[Round "7.15"]
[White "Svacina, Tobias"]
[Black "Hozda, Max"]
[Result "1-0"]
[TimeControl "90 min per 40 moves + 15 min + 30 sec / move from move 1"]
[WhiteFideId "385859"]
[BlackFideId "23725958"]
[WhiteElo "1941"]
[BlackElo "2045"]

1. e4 {[%clk 01:30:21]} {[%emt 00:00:38]} d5 {[%clk 01:27:49]} {[%emt
00:03:12]} 2. exd5 {[%clk 01:29:05]} {[%emt 00:01:47]} Qxd5 {[%clk 01:28:11]}
{[%emt 00:00:07]} 3. Nc3 {[%clk 01:27:49]} {[%emt 00:01:45]} Qd8 {[%clk
01:27:42]} {[%emt 00:01:00]} 4. g3 {[%clk 01:26:22]} {[%emt 00:01:57]} Nf6
{[%clk 01:27:26]} {[%emt 00:00:46]} 5. Bg2 {[%clk 01:25:50]} {[%emt 00:01:02]}
c6 {[%clk 01:26:55]} {[%emt 00:01:00]} 6. d4 {[%clk 01:23:42]} {[%emt
00:02:39]} g6 {[%clk 01:26:55]} {[%emt 00:00:30]} 7. Nf3 {[%clk 01:20:30]}
{[%emt 00:03:42]} Bg7 {[%clk 01:26:27]} {[%emt 00:00:57]} 8. h3 {[%clk
01:19:15]} {[%emt 00:01:45]} O-O {[%clk 01:26:02]} {[%emt 00:00:57]} 9. O-O
{[%clk 01:19:19]} {[%emt 00:00:24]} Bf5 {[%clk 01:24:50]} {[%emt 00:01:42]} 10.
Qe2 {[%clk 01:17:21]} {[%emt 00:02:29]} Na6 {[%clk 01:18:55]} {[%emt 00:06:25]}
11. a3 {[%clk 01:12:11]} {[%emt 00:05:40]} Nc7 {[%clk 01:16:44]} {[%emt
00:02:41]} 12. Re1 {[%clk 01:11:32]} {[%emt 00:01:08]} Re8 {[%clk 01:16:55]}
{[%emt 00:00:20]} 13. b3 {[%clk 01:06:37]} {[%emt 00:05:25]} Nd7 {[%clk
00:58:19]} {[%emt 00:19:05]} 14. Bb2 {[%clk 00:46:59]} {[%emt 00:20:08]} e5
{[%clk 00:56:20]} {[%emt 00:02:29]} 15. Qd2 {[%clk 00:46:37]} {[%emt 00:00:52]}
exd4 {[%clk 00:51:56]} {[%emt 00:04:54]} 16. Rxe8+ {[%clk 00:46:20]} {[%emt
00:00:47]} Nxe8 {[%clk 00:44:35]} {[%emt 00:07:51]} 17. Nxd4 {[%clk 00:44:47]}
{[%emt 00:02:03]} Nb6 {[%clk 00:40:20]} {[%emt 00:04:45]} 18. Rd1 {[%clk
00:43:48]} {[%emt 00:01:30]} Bxd4 {[%clk 00:37:58]} {[%emt 00:02:52]} 19. Qxd4
{[%clk 00:43:22]} {[%emt 00:00:55]} Qxd4 {[%clk 00:38:15]} {[%emt 00:00:13]} 20.
Rxd4 {[%clk 00:43:51]} {[%emt 00:00:02]} Bxc2 {[%clk 00:36:23]} {[%emt
00:02:22]} 21. b4 {[%clk 00:37:22]} {[%emt 00:06:59]} Nc7 {[%clk 00:22:20]}
{[%emt 00:14:32]} 22. g4 {[%clk 00:23:42]} {[%emt 00:14:11]} f5 {[%clk
00:13:55]} {[%emt 00:08:54]} 23. Rd2 {[%clk 00:18:28]} {[%emt 00:05:44]} Bb3
{[%clk 00:13:53]} {[%emt 00:00:32]} 24. gxf5 {[%emt 00:00:17]} gxf5 {[%emt
00:01:01]} 25. Rd3 {[%clk 00:17:47]} {[%emt 00:00:25]} Kf7 {[%clk 00:02:00]}
{[%emt 00:12:51]} 26. Ne4 {[%clk 00:08:23]} {[%emt 00:09:55]} Bc4 {[%clk
00:01:31]} {[%emt 00:00:59]} 27. Ng5+ {[%clk 00:05:12]} {[%emt 00:03:41]} Kg6
{[%clk 00:01:05]} {[%emt 00:00:56]} 28. Rg3 {[%clk 00:05:08]} {[%emt 00:00:34]}
f4 {[%clk 00:00:50]} {[%emt 00:00:45]} 29. Rg4 {[%clk 00:04:22]} {[%emt
00:01:15]} h5 {[%clk 00:00:58]} {[%emt 00:00:23]} 30. Be4+ {[%clk 00:04:41]}
{[%emt 00:00:11]} Kh6 {[%clk 00:01:11]} {[%emt 00:00:18]} 31. Nf7+ {[%clk
00:05:01]} {[%emt 00:00:08]} Bxf7 {[%clk 00:01:26]} {[%emt 00:00:16]} 32. Bg7#
{[%clk 00:05:25]} {[%emt 00:00:06]} 1-0

[Event "Polofinale MCR junioru 2023"]
[Site "Czech Republic"]
[Date "2023.11.16"]
[Round "7.16"]
[White "Stejskal, Michal"]
[Black "Fizer, Marek"]
[Result "0-1"]
[TimeControl "90 min per 40 moves + 15 min + 30 sec / move from move 1"]
[WhiteFideId "398195"]
[BlackFideId "391980"]
[WhiteElo "1872"]
[BlackElo "2162"]

1. d4 {[%clk 01:30:56]} {[%emt 00:00:04]} d5 {[%clk 01:30:53]} {[%emt
00:00:07]} 2. Nf3 {[%clk 01:31:13]} {[%emt 00:00:13]} e6 {[%clk 01:31:07]}
{[%emt 00:00:16]} 3. g3 {[%clk 01:31:36]} {[%emt 00:00:07]} c6 {[%clk
01:31:02]} {[%emt 00:00:36]} 4. Bg2 {[%clk 01:31:58]} {[%emt 00:00:08]} Nf6
{[%clk 01:31:24]} {[%emt 00:00:07]} 5. O-O {[%clk 01:32:20]} {[%emt 00:00:07]}
Nbd7 {[%clk 01:31:14]} {[%emt 00:00:40]} 6. Nbd2 {[%clk 01:32:38]} {[%emt
00:00:12]} Bd6 {[%clk 01:31:05]} {[%emt 00:00:40]} 7. Re1 {[%clk 01:32:10]}
{[%emt 00:00:59]} O-O {[%clk 01:28:57]} {[%emt 00:02:37]} 8. e4 {[%clk
01:31:04]} {[%emt 00:01:36]} dxe4 {[%clk 01:28:33]} {[%emt 00:00:54]} 9. Nxe4
{[%clk 01:31:27]} {[%emt 00:00:06]} Nxe4 {[%clk 01:28:40]} {[%emt 00:00:23]} 10.
Rxe4 {[%clk 01:31:48]} {[%emt 00:00:09]} Qc7 {[%clk 01:27:07]} {[%emt
00:02:03]} 11. Qd3 {[%clk 01:29:17]} {[%emt 00:03:00]} Re8 {[%clk 01:09:35]}
{[%emt 00:18:03]} 12. Rh4 {[%clk 01:10:34]} {[%emt 00:19:13]} Nf8 {[%clk
01:09:52]} {[%emt 00:00:14]} 13. Re4 {[%clk 01:06:06]} {[%emt 00:04:57]} b6
{[%clk 01:03:09]} {[%emt 00:07:12]} 14. Ne5 {[%clk 01:01:23]} {[%emt 00:05:13]}
Bb7 {[%clk 00:56:23]} {[%emt 00:07:16]} 15. Re1 {[%clk 00:57:52]} {[%emt
00:04:01]} c5 {[%clk 00:50:32]} {[%emt 00:06:21]} 16. Bxb7 {[%clk 00:43:33]}
{[%emt 00:14:49]} Qxb7 {[%clk 00:50:48]} {[%emt 00:00:15]} 17. dxc5 {[%clk
00:42:32]} {[%emt 00:01:31]} Bxc5 {[%clk 00:50:00]} {[%emt 00:01:17]} 18. Be3
{[%clk 00:41:41]} {[%emt 00:01:21]} Red8 {[%clk 00:48:57]} {[%emt 00:01:32]} 19.
Qb3 {[%clk 00:40:38]} {[%emt 00:01:34]} Rac8 {[%clk 00:47:18]} {[%emt
00:02:08]} 20. Nd3 {[%clk 00:35:10]} {[%emt 00:05:59]} Bxe3 {[%clk 00:45:26]}
{[%emt 00:02:22]} 21. Rxe3 {[%clk 00:35:31]} {[%emt 00:00:08]} Ng6 {[%clk
00:40:37]} {[%emt 00:05:19]} 22. Rae1 {[%clk 00:27:34]} {[%emt 00:08:28]} Ne7
{[%clk 00:38:24]} {[%emt 00:02:42]} 23. Nf4 {[%clk 00:27:14]} {[%emt 00:00:51]}
Nf5 {[%clk 00:37:36]} {[%emt 00:01:18]} 24. Rd3 {[%clk 00:27:26]} {[%emt
00:00:19]} Nd4 {[%clk 00:36:58]} {[%emt 00:01:08]} 25. Rxd4 {[%clk 00:22:25]}
{[%emt 00:05:32]} Rxd4 {[%clk 00:36:55]} {[%emt 00:00:33]} 26. Nxe6 {[%clk
00:22:41]} {[%emt 00:00:15]} Re4 {[%clk 00:36:02]} {[%emt 00:01:22]} 27. Rxe4
{[%clk 00:21:13]} {[%emt 00:01:58]} Qxe4 {[%clk 00:36:27]} {[%emt 00:00:05]} 28.
Ng5 {[%clk 00:21:08]} {[%emt 00:00:35]} Qf5 {[%clk 00:36:47]} {[%emt 00:00:10]}
29. Qe3 {[%clk 00:20:37]} {[%emt 00:01:02]} Qxc2 {[%clk 00:36:20]} {[%emt
00:00:57]} 30. Ne4 {[%clk 00:20:27]} {[%emt 00:00:40]} Qxb2 {[%clk 00:36:06]}
{[%emt 00:00:44]} 31. Kg2 {[%clk 00:20:48]} {[%emt 00:00:09]} Qxa2 {[%clk
00:35:50]} {[%emt 00:00:46]} 32. Qg5 {[%clk 00:21:13]} {[%emt 00:00:05]} Qe6
{[%clk 00:36:10]} {[%emt 00:00:10]} 0-1

[Event "Polofinale MCR junioru 2023"]
[Site "Czech Republic"]
[Date "2023.11.16"]
[Round "7.17"]
[White "Pelc, Adam"]
[Black "Stocek, Martin"]
[Result "1/2-1/2"]
[TimeControl "90 min per 40 moves + 15 min + 30 sec / move from move 1"]
[WhiteFideId "23723033"]
[BlackFideId "380121"]
[WhiteElo "1856"]
[BlackElo "2125"]

1. e4 {[%clk 01:30:55]} {[%emt 00:00:05]} c6 {[%clk 01:30:16]} {[%emt
00:00:45]} 2. d4 {[%clk 01:30:36]} {[%emt 00:00:48]} d5 {[%clk 01:30:41]}
{[%emt 00:00:05]} 3. Nc3 {[%clk 01:30:30]} {[%emt 00:00:36]} dxe4 {[%clk
01:31:04]} {[%emt 00:00:08]} 4. Nxe4 {[%clk 01:30:52]} {[%emt 00:00:08]} Bf5
{[%clk 01:31:31]} {[%emt 00:00:03]} 5. Ng3 {[%clk 01:31:10]} {[%emt 00:00:12]}
Bg6 {[%clk 01:31:59]} {[%emt 00:00:02]} 6. Nf3 {[%clk 01:30:53]} {[%emt
00:00:47]} Nd7 {[%clk 01:32:19]} {[%emt 00:00:08]} 7. h4 {[%clk 01:27:56]}
{[%emt 00:03:28]} h6 {[%clk 01:32:47]} {[%emt 00:00:03]} 8. Bd3 {[%clk
01:28:06]} {[%emt 00:00:20]} Bxd3 {[%clk 01:33:08]} {[%emt 00:00:08]} 9. Qxd3
{[%clk 01:28:31]} {[%emt 00:00:05]} e6 {[%clk 01:32:27]} {[%emt 00:01:11]} 10.
Bf4 {[%clk 01:15:44]} {[%emt 00:13:18]} Ngf6 {[%clk 01:31:57]} {[%emt
00:01:00]} 11. c4 {[%clk 01:11:29]} {[%emt 00:04:45]} Qa5+ {[%clk 01:30:02]}
{[%emt 00:02:24]} 12. Bd2 {[%clk 01:10:24]} {[%emt 00:01:36]} Qc7 {[%clk
01:30:29]} {[%emt 00:00:02]} 13. Ne2 {[%clk 01:00:35]} {[%emt 00:10:20]} O-O-O
{[%clk 01:11:40]} {[%emt 00:19:18]} 14. O-O-O {[%clk 00:37:50]} {[%emt
00:23:15]} c5 {[%clk 01:00:48]} {[%emt 00:11:22]} 15. Nc3 {[%clk 00:34:54]}
{[%emt 00:03:26]} cxd4 {[%clk 00:43:52]} {[%emt 00:17:26]} 16. Nb5 {[%clk
00:28:17]} {[%emt 00:07:07]} Qb6 {[%clk 00:41:13]} {[%emt 00:03:08]} 17. Qxd4
{[%clk 00:21:30]} {[%emt 00:07:18]} Bc5 {[%clk 00:32:31]} {[%emt 00:09:11]} 18.
Qf4 {[%clk 00:16:17]} {[%emt 00:05:42]} a6 {[%clk 00:03:51]} {[%emt 00:29:11]}
19. Ba5 {[%clk 00:13:18]} {[%emt 00:03:28]} Qxa5 {[%clk 00:03:55]} {[%emt
00:00:25]} 20. b4 {[%clk 00:13:39]} {[%emt 00:00:09]} e5 {[%clk 00:03:48]}
{[%emt 00:00:37]} 21. Nxe5 {[%clk 00:11:51]} {[%emt 00:02:18]} Qxa2 {[%clk
00:04:04]} {[%emt 00:00:14]} 1/2-1/2

[Event "Polofinale MCR junioru 2023"]
[Site "Czech Republic"]
[Date "2023.11.16"]
[Round "7.18"]
[White "Steinbauer, Sebastian"]
[Black "Davidek, Zdenek"]
[Result "1-0"]
[TimeControl "90 min per 40 moves + 15 min + 30 sec / move from move 1"]
[WhiteFideId "399272"]
[BlackFideId "23725001"]
[WhiteElo "1869"]
[BlackElo "2099"]

1. e4 {[%clk 01:23:27]} {[%emt 00:07:33]} c5 {[%clk 01:30:52]} {[%emt
00:00:08]} 2. Nf3 {[%clk 01:23:49]} {[%emt 00:00:07]} Nc6 {[%clk 01:31:17]}
{[%emt 00:00:05]} 3. d4 {[%clk 01:23:44]} {[%emt 00:00:35]} cxd4 {[%clk
01:31:41]} {[%emt 00:00:06]} 4. Nxd4 {[%clk 01:24:11]} {[%emt 00:00:04]} Nf6
{[%clk 01:32:05]} {[%emt 00:00:06]} 5. Nc3 {[%clk 01:24:34]} {[%emt 00:00:07]}
e5 {[%clk 01:32:29]} {[%emt 00:00:05]} 6. Nxc6 {[%clk 01:24:08]} {[%emt
00:00:57]} bxc6 {[%clk 01:32:52]} {[%emt 00:00:06]} 7. Bg5 {[%clk 01:24:32]}
{[%emt 00:00:06]} Be7 {[%clk 01:29:56]} {[%emt 00:03:26]} 8. Bc4 {[%clk
01:24:13]} {[%emt 00:00:50]} Rb8 {[%clk 01:29:19]} {[%emt 00:01:07]} 9. O-O
{[%clk 01:23:35]} {[%emt 00:01:08]} O-O {[%clk 01:29:07]} {[%emt 00:00:41]} 10.
f4 {[%clk 01:23:30]} {[%emt 00:00:35]} d6 {[%clk 01:17:15]} {[%emt 00:12:22]}
11. fxe5 {[%clk 01:22:31]} {[%emt 00:01:29]} dxe5 {[%clk 01:17:40]} {[%emt
00:00:05]} 12. Qxd8 {[%clk 01:21:09]} {[%emt 00:01:52]} Rxd8 {[%clk 01:18:01]}
{[%emt 00:00:09]} 13. Bb3 {[%clk 01:20:58]} {[%emt 00:00:41]} Be6 {[%clk
01:02:48]} {[%emt 00:15:43]} 14. Be3 {[%clk 01:19:09]} {[%emt 00:02:19]} a6
{[%clk 00:56:44]} {[%emt 00:06:34]} 15. h3 {[%clk 01:19:15]} {[%emt 00:00:24]}
Bb4 {[%clk 00:47:40]} {[%emt 00:09:34]} 16. Bg5 {[%clk 01:18:51]} {[%emt
00:00:54]} Be7 {[%clk 00:36:14]} {[%emt 00:11:55]} 17. Rad1 {[%clk 01:18:32]}
{[%emt 00:00:50]} h6 {[%clk 00:31:20]} {[%emt 00:05:25]} 18. Bxf6 {[%clk
01:18:25]} {[%emt 00:00:37]} Bxf6 {[%clk 00:29:30]} {[%emt 00:02:20]} 19. Rxd8+
{[%clk 01:18:45]} {[%emt 00:00:10]} Bxd8 {[%clk 00:29:04]} {[%emt 00:00:56]} 20.
Bxe6 {[%clk 01:19:02]} {[%emt 00:00:13]} fxe6 {[%clk 00:29:33]} {[%emt
00:00:01]} 21. b3 {[%clk 01:16:05]} {[%emt 00:03:27]} Ba5 {[%clk 00:29:40]}
{[%emt 00:00:23]} 22. Na4 {[%clk 01:14:53]} {[%emt 00:01:43]} Rd8 {[%clk
00:28:42]} {[%emt 00:01:28]} 23. Rf2 {[%clk 01:15:08]} {[%emt 00:00:15]} Rd1+
{[%clk 00:27:58]} {[%emt 00:01:13]} 24. Kh2 {[%clk 01:14:46]} {[%emt 00:00:52]}
Re1 {[%clk 00:20:33]} {[%emt 00:07:55]} 25. c4 {[%clk 01:14:17]} {[%emt
00:00:59]} Bb4 {[%clk 00:19:47]} {[%emt 00:01:16]} 26. Nb2 {[%clk 01:12:18]}
{[%emt 00:02:28]} Rxe4 {[%clk 00:19:53]} {[%emt 00:00:24]} 27. Nd3 {[%clk
01:12:42]} {[%emt 00:00:06]} Be7 {[%clk 00:20:00]} {[%emt 00:00:23]} 28. a4
{[%clk 01:10:09]} {[%emt 00:03:03]} a5 {[%clk 00:15:11]} {[%emt 00:05:19]} 29.
Kg1 {[%clk 01:09:13]} {[%emt 00:01:25]} Bh4 {[%clk 00:13:45]} {[%emt 00:01:57]}
30. Rf3 {[%clk 01:09:35]} {[%emt 00:00:08]} Re2 {[%clk 00:12:00]} {[%emt
00:02:15]} 31. Kf1 {[%clk 01:09:34]} {[%emt 00:00:30]} Rd2 {[%clk 00:09:50]}
{[%emt 00:02:41]} 32. Nc5 {[%clk 01:08:48]} {[%emt 00:01:17]} Rd1+ {[%clk
00:09:27]} {[%emt 00:00:53]} 33. Ke2 {[%clk 01:09:12]} {[%emt 00:00:06]} Re1+
{[%clk 00:09:33]} {[%emt 00:00:24]} 34. Kd2 {[%clk 01:06:55]} {[%emt 00:02:47]}
Rg1 {[%clk 00:09:53]} {[%emt 00:00:10]} 35. g4 {[%clk 01:06:57]} {[%emt
00:00:27]} Be1+ {[%clk 00:08:11]} {[%emt 00:02:12]} 36. Kd3 {[%clk 01:06:15]}
{[%emt 00:01:11]} Bb4 {[%clk 00:06:05]} {[%emt 00:02:38]} 37. Nxe6 {[%clk
01:06:37]} {[%emt 00:00:08]} Rd1+ {[%clk 00:05:49]} {[%emt 00:00:45]} 38. Ke4
{[%clk 01:06:58]} {[%emt 00:00:09]} Re1+ {[%clk 00:05:57]} {[%emt 00:00:22]} 39.
Re3 {[%clk 01:07:03]} {[%emt 00:00:26]} Rh1 {[%clk 00:03:34]} {[%emt 00:02:53]}
40. Kxe5 {[%clk 01:06:24]} {[%emt 00:01:09]} Bd2 {[%clk 00:03:16]} {[%emt
00:00:47]} 41. Rd3 {[%clk 01:02:13]} {[%emt 00:04:42]} Bb4 {[%clk 00:03:18]}
{[%emt 00:00:28]} 42. c5 {[%clk 01:00:54]} {[%emt 00:01:48]} Re1+ {[%clk
00:02:01]} {[%emt 00:01:46]} 43. Kd6 {[%clk 01:01:05]} {[%emt 00:00:19]} Re4
{[%clk 00:15:14]} {[%emt 00:02:17]} 44. Nd8 {[%clk 01:15:31]} {[%emt 00:01:05]}
h5 {[%clk 00:15:37]} {[%emt 00:00:07]} 45. gxh5 {[%emt 00:01:22]} 1-0

[Event "Polofinale MCR junioru 2023"]
[Site "Czech Republic"]
[Date "2023.11.16"]
[Round "7.19"]
[White "Kulhanek, Jachym"]
[Black "Bednar, Milos"]
[Result "1-0"]
[TimeControl "90 min per 40 moves + 15 min + 30 sec / move from move 1"]
[WhiteFideId "23716193"]
[BlackFideId "23709812"]
[WhiteElo "2056"]
[BlackElo "1833"]

1. e4 {[%clk 01:30:57]} {[%emt 00:00:02]} c5 {[%clk 01:30:58]} {[%emt
00:00:04]} 2. c3 {[%clk 01:31:21]} {[%emt 00:00:05]} d5 {[%clk 01:31:24]}
{[%emt 00:00:04]} 3. exd5 {[%clk 01:31:47]} {[%emt 00:00:04]} Qxd5 {[%clk
01:31:51]} {[%emt 00:00:03]} 4. d4 {[%clk 01:32:10]} {[%emt 00:00:07]} Nc6
{[%clk 01:32:18]} {[%emt 00:00:03]} 5. Nf3 {[%clk 01:32:34]} {[%emt 00:00:05]}
Bg4 {[%clk 01:32:31]} {[%emt 00:00:18]} 6. Be2 {[%clk 01:32:57]} {[%emt
00:00:07]} e6 {[%clk 01:32:58]} {[%emt 00:00:04]} 7. O-O {[%clk 01:33:20]}
{[%emt 00:00:07]} Nf6 {[%clk 01:33:08]} {[%emt 00:00:20]} 8. Be3 {[%clk
01:31:56]} {[%emt 00:01:53]} cxd4 {[%clk 01:33:30]} {[%emt 00:00:10]} 9. cxd4
{[%clk 01:31:52]} {[%emt 00:00:33]} Be7 {[%clk 01:33:43]} {[%emt 00:00:17]} 10.
Nc3 {[%clk 01:32:14]} {[%emt 00:00:08]} Qd6 {[%clk 01:34:10]} {[%emt 00:00:04]}
11. Qb3 {[%clk 01:24:56]} {[%emt 00:07:46]} O-O {[%clk 01:33:33]} {[%emt
00:01:08]} 12. Rfd1 {[%clk 01:24:39]} {[%emt 00:00:46]} Rfd8 {[%clk 01:33:02]}
{[%emt 00:01:03]} 13. h3 {[%clk 01:24:21]} {[%emt 00:00:47]} Bh5 {[%clk
01:32:57]} {[%emt 00:00:36]} 14. Rd2 {[%clk 01:15:44]} {[%emt 00:09:07]} Nb4
{[%clk 01:32:28]} {[%emt 00:00:59]} 15. Ne5 {[%clk 01:08:54]} {[%emt 00:07:19]}
Bxe2 {[%clk 01:29:57]} {[%emt 00:03:01]} 16. Rxe2 {[%clk 01:07:50]} {[%emt
00:01:33]} b6 {[%clk 01:07:56]} {[%emt 00:22:32]} 17. a3 {[%clk 01:05:16]}
{[%emt 00:03:04]} Nc6 {[%clk 01:03:09]} {[%emt 00:05:17]} 18. Nb5 {[%clk
01:04:45]} {[%emt 00:01:00]} Na5 {[%clk 01:03:34]} {[%emt 00:00:05]} 19. Qd1
{[%clk 00:55:35]} {[%emt 00:09:40]} Qb8 {[%clk 01:01:22]} {[%emt 00:02:43]} 20.
b4 {[%clk 00:54:17]} {[%emt 00:01:47]} a6 {[%clk 01:01:47]} {[%emt 00:00:06]}
21. bxa5 {[%clk 00:52:46]} {[%emt 00:02:01]} axb5 {[%clk 01:02:01]} {[%emt
00:00:16]} 22. Nc6 {[%clk 00:52:49]} {[%emt 00:00:26]} Qd6 {[%clk 01:01:22]}
{[%emt 00:01:10]} 23. Nxd8 {[%clk 00:52:57]} {[%emt 00:00:21]} Rxd8 {[%clk
01:01:35]} {[%emt 00:00:17]} 24. axb6 {[%clk 00:52:13]} {[%emt 00:01:15]} Qxb6
{[%clk 01:01:56]} {[%emt 00:00:10]} 25. Qb3 {[%clk 00:49:49]} {[%emt 00:02:53]}
Qa6 {[%clk 01:01:08]} {[%emt 00:01:18]} 26. Ree1 {[%clk 00:46:54]} {[%emt
00:03:25]} Nd5 {[%clk 00:59:47]} {[%emt 00:01:51]} 27. Reb1 {[%clk 00:39:21]}
{[%emt 00:08:02]} Rb8 {[%clk 00:59:48]} {[%emt 00:00:31]} 28. Qd3 {[%clk
00:37:36]} {[%emt 00:02:14]} Qa4 {[%clk 00:49:47]} {[%emt 00:10:32]} 29. Bd2
{[%clk 00:30:25]} {[%emt 00:07:40]} Bf6 {[%clk 00:43:53]} {[%emt 00:06:24]} 30.
Bb4 {[%clk 00:21:42]} {[%emt 00:09:12]} Qa8 {[%clk 00:36:46]} {[%emt 00:07:37]}
31. Bd6 {[%clk 00:18:45]} {[%emt 00:03:28]} Rb6 {[%clk 00:35:27]} {[%emt
00:01:49]} 32. Bc5 {[%clk 00:16:30]} {[%emt 00:02:45]} Nf4 {[%clk 00:34:53]}
{[%emt 00:01:05]} 33. Qf3 {[%clk 00:15:47]} {[%emt 00:01:12]} Qxf3 {[%clk
00:35:15]} {[%emt 00:00:09]} 34. gxf3 {[%clk 00:16:13]} {[%emt 00:00:03]} Rb8
{[%clk 00:31:11]} {[%emt 00:04:34]} 35. Ra2 {[%clk 00:13:04]} {[%emt 00:03:39]}
Nxh3+ {[%clk 00:31:11]} {[%emt 00:00:30]} 36. Kf1 {[%clk 00:13:05]} {[%emt
00:00:27]} Nf4 {[%clk 00:30:16]} {[%emt 00:01:26]} 1-0

[Event "Polofinale MCR junioru 2023"]
[Site "Czech Republic"]
[Date "2023.11.16"]
[Round "7.20"]
[White "Jasso, Matej"]
[Black "Zezula, Matej"]
[Result "1-0"]
[TimeControl "90 min per 40 moves + 15 min + 30 sec / move from move 1"]
[WhiteFideId "23710748"]
[BlackFideId "23725796"]
[WhiteElo "2033"]
[BlackElo "1666"]

1. e4 {[%clk 01:30:40]} {[%emt 00:00:20]} c5 {[%clk 01:30:47]} {[%emt
00:00:13]} 2. Nf3 {[%clk 01:30:51]} {[%emt 00:00:18]} d6 {[%clk 01:30:57]}
{[%emt 00:00:20]} 3. d4 {[%clk 01:31:15]} {[%emt 00:00:06]} cxd4 {[%clk
01:31:24]} {[%emt 00:00:03]} 4. Nxd4 {[%clk 01:31:37]} {[%emt 00:00:07]} Nf6
{[%clk 01:31:49]} {[%emt 00:00:06]} 5. Nc3 {[%clk 01:31:58]} {[%emt 00:00:09]}
g6 {[%clk 01:32:02]} {[%emt 00:00:18]} 6. Be3 {[%clk 01:32:20]} {[%emt
00:00:08]} Bg7 {[%clk 01:32:26]} {[%emt 00:00:06]} 7. f3 {[%clk 01:32:47]}
{[%emt 00:00:03]} O-O {[%clk 01:32:47]} {[%emt 00:00:10]} 8. Bc4 {[%clk
01:33:08]} {[%emt 00:00:09]} Nc6 {[%clk 01:33:08]} {[%emt 00:00:09]} 9. Qd2
{[%clk 01:32:59]} {[%emt 00:00:38]} Bd7 {[%clk 01:33:28]} {[%emt 00:00:11]} 10.
h4 {[%clk 01:33:22]} {[%emt 00:00:07]} Rc8 {[%clk 01:29:47]} {[%emt 00:04:11]}
11. Bb3 {[%clk 01:33:24]} {[%emt 00:00:28]} a5 {[%clk 01:29:26]} {[%emt
00:00:51]} 12. h5 {[%clk 01:25:36]} {[%emt 00:08:17]} Nxd4 {[%clk 01:15:16]}
{[%emt 00:14:40]} 13. Bxd4 {[%clk 01:25:34]} {[%emt 00:00:31]} e6 {[%clk
01:12:57]} {[%emt 00:02:50]} 14. a4 {[%clk 01:24:38]} {[%emt 00:01:27]} Qe7
{[%clk 01:05:28]} {[%emt 00:07:58]} 15. O-O-O {[%clk 01:21:28]} {[%emt
00:03:40]} b5 {[%clk 00:58:14]} {[%emt 00:07:45]} 16. axb5 {[%clk 01:13:17]}
{[%emt 00:08:41]} Rxc3 {[%clk 00:55:05]} {[%emt 00:03:38]} 17. Bxc3 {[%clk
01:10:32]} {[%emt 00:03:15]} Bxb5 {[%clk 00:54:53]} {[%emt 00:00:43]} 18. hxg6
{[%clk 01:10:09]} {[%emt 00:00:52]} hxg6 {[%clk 00:54:42]} {[%emt 00:00:41]} 19.
Qxd6 {[%clk 01:01:29]} {[%emt 00:09:09]} Qxd6 {[%clk 00:52:22]} {[%emt
00:02:50]} 20. Rxd6 {[%clk 01:00:55]} {[%emt 00:01:04]} a4 {[%clk 00:51:05]}
{[%emt 00:01:49]} 21. Ba2 {[%clk 01:00:23]} {[%emt 00:01:01]} Rc8 {[%clk
00:50:40]} {[%emt 00:00:55]} 22. Rhd1 {[%clk 00:59:05]} {[%emt 00:01:48]} Kh7
{[%clk 00:49:06]} {[%emt 00:02:04]} 23. Rd8 {[%clk 00:58:58]} {[%emt 00:00:37]}
Rc5 {[%clk 00:48:14]} {[%emt 00:01:23]} 24. Rh1+ {[%clk 00:58:26]} {[%emt
00:01:01]} Rh5 {[%clk 00:47:36]} {[%emt 00:01:08]} 25. Rxh5+ {[%clk 00:58:42]}
{[%emt 00:00:14]} Nxh5 {[%clk 00:47:53]} {[%emt 00:00:14]} 26. Bxg7 {[%clk
00:59:06]} {[%emt 00:00:07]} Kxg7 {[%clk 00:48:16]} {[%emt 00:00:07]} 27. c4
{[%clk 00:58:29]} {[%emt 00:01:07]} 1-0